fUSD/lending_fUSD_20260513
["ID","MTS","AMOUNT","RATE_DAILY","PERIOD"]
[422171648,1778645230000,-150.0,0.0001413,2]
[422171644,1778645230000,-150.0,0.0001405,2]
[422171645,1778645230000,-150.0,0.00014059,2]
[422171646,1778645230000,-150.0,0.00014064,2]
[422171640,1778645230000,-150.0,0.00014033,2]
[422171643,1778645230000,-150.0,0.0001405,2]
[422171638,1778645230000,-250.0,0.00014,2]
[422171632,1778645230000,-150.0,0.00013949,2]
[422171636,1778645230000,-150.0,0.00013956,2]
[422171634,1778645230000,-150.0,0.00013956,2]
[422171635,1778645230000,-150.0,0.00013956,2]
[422171633,1778645230000,-150.0,0.00013952,2]
[422171630,1778645230000,-150.0,0.00013916,2]
[422171631,1778645230000,-150.0,0.00013916,2]
[422171629,1778645230000,-150.0,0.00013896,2]
[422171627,1778645230000,-150.0,0.00013862,2]
[422171649,1778645230000,-150.0,0.0001413,2]
[422171637,1778645230000,-150.0,0.00013987,2]
[422171628,1778645230000,-150.0,0.0001388,2]
[422171647,1778645230000,-150.0,0.00014094,2]
[422171651,1778645230000,-150.0,0.00014143,2]
[422171650,1778645230000,-150.0,0.00014143,2]
[422171673,1778645230000,-150.0,0.00014415,2]
[422171669,1778645230000,-150.0,0.00014344,2]
[422171668,1778645230000,-150.0,0.00014331,2]
[422171671,1778645230000,-150.0,0.0001438,2]
[422171672,1778645230000,-150.0,0.0001441,2]
[422171670,1778645230000,-150.0,0.00014344,2]
[422171664,1778645230000,-150.0,0.00014305,2]
[422171665,1778645230000,-150.0,0.00014308,2]
[422171666,1778645230000,-150.0,0.00014331,2]
[422171662,1778645230000,-150.0,0.00014273,2]
[422171667,1778645230000,-150.0,0.00014331,2]
[422171659,1778645230000,-150.0,0.00014237,2]
[422171663,1778645230000,-150.0,0.00014295,2]
[422171652,1778645230000,-150.0,0.00014143,2]
[422171656,1778645230000,-150.0,0.00014201,2]
[422171654,1778645230000,-150.0,0.00014169,2]
[422171655,1778645230000,-150.0,0.00014179,2]
[422171653,1778645230000,-150.0,0.00014166,2]
[422171658,1778645230000,-150.0,0.00014237,2]
[422171661,1778645230000,-150.0,0.00014237,2]
[422171660,1778645230000,-150.0,0.00014237,2]
[422171657,1778645230000,-150.0,0.00014237,2]
[422171684,1778645231000,-150.0,0.00014522,2]
[422171695,1778645231000,-150.0,0.0001464,2]
[422171696,1778645231000,-150.0,0.00014665,2]
[422171694,1778645231000,-150.0,0.00014629,2]
[422171692,1778645231000,-150.0,0.00014612,2]
[422171691,1778645231000,-150.0,0.00014612,2]
[422171688,1778645231000,-150.0,0.00014578,2]
[422171689,1778645231000,-150.0,0.00014594,2]
[422171685,1778645231000,-150.0,0.00014525,2]
[422171686,1778645231000,-150.0,0.00014558,2]
[422171693,1778645231000,-150.0,0.00014612,2]
[422171682,1778645231000,-150.0,0.00014518,2]
[422171683,1778645231000,-150.0,0.00014518,2]
[422171681,1778645231000,-150.0,0.00014518,2]
[422171680,1778645231000,-150.0,0.00014487,2]
[422171679,1778645231000,-150.0,0.00014451,2]
[422171678,1778645231000,-150.0,0.00014441,2]
[422171677,1778645231000,-150.0,0.00014424,2]
[422171676,1778645231000,-150.0,0.00014424,2]
[422171675,1778645231000,-150.0,0.00014424,2]
[422171674,1778645231000,-150.0,0.00014424,2]
[422171687,1778645231000,-150.0,0.00014558,2]
[422171697,1778645231000,-886.272,0.000147,2]
[422171690,1778645231000,-150.0,0.00014612,2]
[422171700,1778645231000,-150.0,0.00014705,2]
[422171720,1778645231000,-7117.42713341,0.000149,2]
[422171716,1778645231000,-150.0,0.00014879,2]
[422171718,1778645231000,-150.0,0.00014893,2]
[422171719,1778645231000,-150.0,0.00014893,2]
[422171717,1778645231000,-150.0,0.00014893,2]
[422171714,1778645231000,-150.0,0.0001485,2]
[422171715,1778645231000,-150.0,0.00014871,2]
[422171711,1778645231000,-150.0,0.00014799,2]
[422171713,1778645231000,-150.0,0.00014844,2]
[422171712,1778645231000,-150.0,0.00014808,2]
[422171710,1778645231000,-150.0,0.00014799,2]
[422171698,1778645231000,-150.0,0.00014701,2]
[422171708,1778645231000,-150.0,0.00014799,2]
[422171707,1778645231000,-420.0,0.00014783,2]
[422171706,1778645231000,-150.0,0.00014772,2]
[422171704,1778645231000,-150.0,0.00014756,2]
[422171721,1778645231000,-2081.05718714,0.000149,2]
[422171705,1778645231000,-150.0,0.00014772,2]
[422171703,1778645231000,-150.0,0.00014737,2]
[422171702,1778645231000,-150.0,0.00014714,2]
[422171701,1778645231000,-150.0,0.00014705,2]
[422171699,1778645231000,-150.0,0.00014705,2]
[422171709,1778645231000,-150.0,0.00014799,2]
[422171722,1778645232000,-2453.09605135,0.000149,2]
[422171725,1778645232000,-4026.93219735,0.000149,3]
[422171724,1778645232000,-1425.55264216,0.000149,2]
[422171723,1778645232000,-470.75366244,0.000149,2]
[422171747,1778645432000,-150.0,0.00014951,2]
[422171745,1778645432000,-200.0,0.000149,2]
[422171742,1778645432000,-4725.39727521,0.000149,3]
[422171741,1778645432000,-1263.52532736,0.000149,3]
[422171743,1778645432000,-5000.0,0.000149,2]
[422171740,1778645432000,-699.49483532,0.000149,3]
[422171734,1778645432000,-3791.82199239,0.000149,3]
[422171738,1778645432000,-3319.77029272,0.000149,3]
[422171737,1778645432000,-781.51955281,0.000149,3]
[422171735,1778645432000,-491.07996804,0.000149,3]
[422171736,1778645432000,-1363.32572538,0.000149,3]
[422171733,1778645432000,-214.91342137,0.00013759,2]
[422171746,1778645432000,-150.0,0.00014915,2]
[422171739,1778645432000,-501.52740981,0.000149,3]
[422171757,1778645432000,-150.0,0.00014986,2]
[422171744,1778645432000,-160.11141832,0.000149,2]
[422171748,1778645432000,-201.40049154,0.00014986,2]
[422171755,1778645432000,-150.0,0.00014986,2]
[422171781,1778645432000,-483.8386383,0.00014999,2]
[422171779,1778645432000,-347.81094041,0.00014999,2]
[422171772,1778645432000,-649.59230906,0.00014999,2]
[422171771,1778645432000,-500.0,0.00014999,2]
[422171769,1778645432000,-1000.0,0.00014999,2]
[422171763,1778645432000,-199.19679499,0.0001499,2]
[422171776,1778645432000,-152.18905959,0.00014999,2]
[422171767,1778645432000,-199.19679499,0.0001499,2]
[422171765,1778645432000,-199.19679499,0.0001499,2]
[422171761,1778645432000,-150.0,0.00014986,2]
[422171758,1778645432000,-158.84105338,0.00014986,2]
[422171759,1778645432000,-158.69225616,0.00014986,2]
[422171751,1778645432000,-150.0,0.00014986,2]
[422171753,1778645432000,-150.0,0.00014986,2]
[422171774,1778645432000,-279.45199128,0.00014999,2]
[422171749,1778645432000,-217.24906598,0.00014986,2]
[422171834,1778645438000,-500.0,0.00014999,2]
[422171832,1778645438000,-500.0,0.00014999,2]
[422171830,1778645438000,-462.50013281,0.00014999,2]
[422171831,1778645438000,-468.56886164,0.00014999,2]
[422171829,1778645438000,-37.49986719,0.00014999,2]
[422171826,1778645438000,-487.78227514,0.00014999,2]
[422171827,1778645438000,-500.0,0.00014999,2]
[422171824,1778645438000,-16.1613617,0.00014999,2]
[422171825,1778645438000,-500.0,0.00014999,2]
[422171833,1778645438000,-500.0,0.00014999,2]
[422171828,1778645438000,-500.0,0.00014999,2]
[422171839,1778645438000,-500.0,0.00014999,2]
[422171844,1778645438000,-300.0,0.00014999,2]
[422171837,1778645438000,-500.0,0.00014999,2]
[422171835,1778645438000,-500.0,0.00014999,2]
[422171838,1778645438000,-500.0,0.00014999,2]
[422171842,1778645438000,-423.05531111,0.00014999,2]
[422171841,1778645438000,-500.0,0.00014999,2]
[422171840,1778645438000,-500.0,0.00014999,2]
[422171843,1778645438000,-687.74970495,0.00014999,2]
[422171846,1778645438000,-3284.82163227,0.00015,2]
[422171847,1778645438000,-618.6790189,0.00015,2]
[422171848,1778645438000,-4081027.51947551,0.00015,2]
[422171845,1778645438000,-666.0,0.00014999,2]
[422171849,1778645438000,-1000.0,0.00015,2]
[422171836,1778645438000,-500.0,0.00014999,2]
[422171851,1778645439000,-291.418766,0.00015,2]
[422171850,1778645439000,-24402.0736557,0.00015,2]
[422171852,1778645439000,-496.19290314,0.00015,2]
[422171858,1778645440000,-2299.95438963,0.00015,2]
[422171860,1778645440000,-311.07665475,0.00015,2]
[422171859,1778645440000,-280782.69339408,0.00015,2]
[422171861,1778645441000,-408.64208731,0.00015,2]
[422171862,1778645441000,-16339.72992309,0.00015,2]
[422171863,1778645441000,-2190.3681756,0.00015,2]
[422171980,1778645443000,-316.00687265,0.00015,2]
[422171978,1778645443000,-1991.79980426,0.000149,2]
[422171979,1778645443000,-38808.20019574,0.00015,2]
[422171976,1778645443000,-10040.17853647,0.00015,2]
[422171981,1778645444000,-982.85312894,0.00015,2]
[422172053,1778645446000,-2894.04614882,0.00015,2]
[422172051,1778645446000,-350.625,0.00015,2]
[422172049,1778645446000,-2152.95831918,0.00015,2]
[422172050,1778645446000,-6568.40555035,0.00015,2]
[422172047,1778645446000,-322.08568618,0.000149,2]
[422172048,1778645446000,-31343.63232538,0.00015,2]
[422172052,1778645446000,-33006.08466273,0.00015,2]
[422172054,1778645447000,-2004.0,0.00015,2]
[422172089,1778646299000,276.72,0.00014356,21]
[422172091,1778646412000,-150.00000001,0.00013488,2]
[422172092,1778646412000,-69.85795737,0.00013892,2]
[422172093,1778646425000,-300.0,0.00013892,2]
[422172113,1778646425000,-355.7566692,0.0001485,2]
[422172112,1778646425000,-1317.31209683,0.00014844,2]
[422172110,1778646425000,-355.7566692,0.00014833,2]
[422172108,1778646425000,-355.7566692,0.00014817,2]
[422172109,1778646425000,-1317.31209683,0.00014822,2]
[422172106,1778646425000,-337.16667098,0.000148,2]
[422172107,1778646425000,-1317.31209683,0.00014811,2]
[422172105,1778646425000,-1317.31209683,0.000148,2]
[422172103,1778646425000,-5000.0,0.000148,2]
[422172104,1778646425000,-339.56672546,0.000148,2]
[422172101,1778646425000,-200.0,0.00014601,2]
[422172102,1778646425000,-355.75666922,0.000148,2]
[422172100,1778646425000,-346.96,0.00014596,2]
[422172098,1778646425000,-346.96,0.00014248,2]
[422172099,1778646425000,-200.0,0.00014356,2]
[422172097,1778646425000,-156.94,0.00014033,2]
[422172096,1778646425000,-250.0,0.00014,2]
[422172095,1778646425000,-346.96,0.00013901,2]
[422172111,1778646425000,-1317.31209683,0.00014833,2]
[422172094,1778646425000,-15732.35,0.00013893,2]
[422172116,1778646425000,-1317.31209683,0.00014856,2]
[422172115,1778646425000,-368.88443664,0.0001485,2]
[422172114,1778646425000,-339.56672545,0.0001485,2]
[422172134,1778646425000,-500.0,0.00014899,2]
[422172135,1778646425000,-525.86658503,0.00014899,2]
[422172133,1778646425000,-254.28762829,0.00014899,2]
[422172131,1778646425000,-504.32407294,0.00014899,2]
[422172132,1778646425000,-500.0,0.00014899,2]
[422172130,1778646425000,-215.00509064,0.00014899,2]
[422172128,1778646425000,-500.0,0.00014899,2]
[422172126,1778646425000,-500.0,0.00014899,2]
[422172129,1778646425000,-500.0,0.00014899,2]
[422172125,1778646425000,-500.0,0.00014899,2]
[422172127,1778646425000,-500.0,0.00014899,2]
[422172119,1778646425000,-1317.31209683,0.00014878,2]
[422172117,1778646425000,-355.7566692,0.00014867,2]
[422172121,1778646425000,-1317.31209683,0.00014889,2]
[422172118,1778646425000,-1317.31209683,0.00014867,2]
[422172122,1778646425000,-365.5083064,0.0001489,2]
[422172124,1778646425000,-500.0,0.00014899,2]
[422172123,1778646425000,-751.91634798,0.00014899,2]
[422172120,1778646425000,-355.7566692,0.00014883,2]
[422172149,1778646426000,-500.0,0.00014899,2]
[422172154,1778646426000,-500.0,0.00014899,2]
[422172155,1778646426000,-500.0,0.00014899,2]
[422172153,1778646426000,-500.0,0.00014899,2]
[422172152,1778646426000,-500.0,0.00014899,2]
[422172150,1778646426000,-500.0,0.00014899,2]
[422172151,1778646426000,-500.0,0.00014899,2]
[422172148,1778646426000,-500.0,0.00014899,2]
[422172147,1778646426000,-500.0,0.00014899,2]
[422172136,1778646426000,-517.33252803,0.00014899,2]
[422172144,1778646426000,-500.0,0.00014899,2]
[422172145,1778646426000,-500.0,0.00014899,2]
[422172142,1778646426000,-500.0,0.00014899,2]
[422172143,1778646426000,-500.0,0.00014899,2]
[422172141,1778646426000,-500.0,0.00014899,2]
[422172140,1778646426000,-500.0,0.00014899,2]
[422172157,1778646426000,-500.0,0.00014899,2]
[422172138,1778646426000,-500.0,0.00014899,2]
[422172137,1778646426000,-500.0,0.00014899,2]
[422172146,1778646426000,-515.54418831,0.00014899,2]
[422172156,1778646426000,-500.0,0.00014899,2]
[422172139,1778646426000,-391.44759259,0.00014899,2]
[422172159,1778646426000,-296.13871778,0.00014899,2]
[422172179,1778646426000,-285.85321796,0.00014899,2]
[422172177,1778646426000,-500.0,0.00014899,2]
[422172178,1778646426000,-500.0,0.00014899,2]
[422172175,1778646426000,-500.0,0.00014899,2]
[422172176,1778646426000,-500.0,0.00014899,2]
[422172172,1778646426000,-500.0,0.00014899,2]
[422172174,1778646426000,-500.0,0.00014899,2]
[422172170,1778646426000,-500.0,0.00014899,2]
[422172171,1778646426000,-500.0,0.00014899,2]
[422172173,1778646426000,-500.0,0.00014899,2]
[422172167,1778646426000,-500.0,0.00014899,2]
[422172168,1778646426000,-500.0,0.00014899,2]
[422172165,1778646426000,-500.0,0.00014899,2]
[422172166,1778646426000,-500.0,0.00014899,2]
[422172164,1778646426000,-500.0,0.00014899,2]
[422172162,1778646426000,-195.6163939,0.00014899,2]
[422172163,1778646426000,-500.0,0.00014899,2]
[422172160,1778646426000,-500.0,0.00014899,2]
[422172161,1778646426000,-304.71461634,0.00014899,2]
[422172169,1778646426000,-500.0,0.00014899,2]
[422172158,1778646426000,-500.0,0.00014899,2]
[422172182,1778646427000,-51967.24770944,0.000149,2]
[422172181,1778646427000,-488.30499488,0.000149,3]
[422172180,1778646427000,-269.78233509,0.000149,2]
[422172183,1778646474000,150.07,7.181e-05,2]
[422172184,1778646474000,150.07,7.947e-05,2]
[422172186,1778646475000,150.07,9.48e-05,2]
[422172185,1778646475000,150.07,8.714e-05,2]
[422172190,1778646569000,-108.39825878,0.00012547,2]
[422172189,1778646569000,-150.07,0.0001178,2]
[422172188,1778646569000,-150.07,0.00011014,2]
[422172187,1778646569000,-150.07,0.00010247,2]
[422172218,1778646631000,-474.01331482,0.00014899,2]
[422172212,1778646631000,-10119.9307845,0.00014873,2]
[422172219,1778646631000,-500.0,0.00014899,2]
[422172210,1778646631000,-1542.29910834,0.00014856,2]
[422172208,1778646631000,-1542.29910834,0.00014833,2]
[422172207,1778646631000,-1542.29910834,0.00014822,2]
[422172206,1778646631000,-1542.29910834,0.00014811,2]
[422172203,1778646631000,-2000.0,0.000148,2]
[422172205,1778646631000,-33166.2013,0.000148,2]
[422172199,1778646631000,-150.0,0.00013927,2]
[422172202,1778646631000,-1542.29910843,0.000148,2]
[422172200,1778646631000,-150.07,0.0001408,2]
[422172201,1778646631000,-300.0,0.00014799,2]
[422172198,1778646631000,-244.23507844,0.00013907,2]
[422172196,1778646631000,-561.36,0.00013907,2]
[422172194,1778646631000,-150.07,0.00013313,2]
[422172195,1778646631000,-573.25299646,0.00013907,2]
[422172193,1778646631000,-41.67174122,0.00012547,2]
[422172211,1778646631000,-1542.29910834,0.00014867,2]
[422172204,1778646631000,-5000.0,0.000148,2]
[422172209,1778646631000,-1542.29910834,0.00014844,2]
[422172197,1778646631000,-621.1519251,0.00013907,2]
[422172214,1778646631000,-1542.29910834,0.00014889,2]
[422172236,1778646631000,-18638.64905596,0.000149,2]
[422172234,1778646631000,-191.98255793,0.000149,2]
[422172233,1778646631000,-93380.6571138,0.000149,2]
[422172235,1778646631000,-9126.10460325,0.000149,2]
[422172230,1778646631000,-1306959.48989772,0.000149,2]
[422172226,1778646631000,-500.0,0.00014899,2]
[422172227,1778646631000,-207.29710244,0.00014899,2]
[422172229,1778646631000,-179.85489006,0.000149,2]
[422172216,1778646631000,-163.73333326,0.00014899,2]
[422172225,1778646631000,-201.55441883,0.00014899,2]
[422172228,1778646631000,-500.0,0.00014899,2]
[422172223,1778646631000,-500.0,0.00014899,2]
[422172232,1778646631000,-37155.02262793,0.000149,2]
[422172231,1778646631000,-10537.58265111,0.000149,2]
[422172220,1778646631000,-500.0,0.00014899,2]
[422172222,1778646631000,-500.0,0.00014899,2]
[422172221,1778646631000,-500.0,0.00014899,2]
[422172217,1778646631000,-500.0,0.00014899,2]
[422172213,1778646631000,-1542.29910834,0.00014878,2]
[422172215,1778646631000,-243.67220426,0.0001489,2]
[422172224,1778646631000,-500.0,0.00014899,2]
[422172242,1778646637000,-458.21523207,0.000149,2]
[422172241,1778646637000,-956.79071888,0.000149,2]
[422172243,1778646638000,-13439.1856671,0.000149,2]
[422172244,1778646638000,-611.85130665,0.000149,2]
[422172245,1778646638000,-5947.53297533,0.000149,2]
[422172247,1778646638000,-2970.99507345,0.000149,2]
[422172249,1778646638000,-2065.67281938,0.000149,2]
[422172248,1778646638000,-5512.51000657,0.000149,2]
[422172246,1778646638000,-54468.73243068,0.000149,2]
[422172276,1778646641000,-500.0,0.00014999,2]
[422172277,1778646641000,-500.0,0.00014999,2]
[422172279,1778646641000,-500.0,0.00014999,2]
[422172282,1778646641000,-593.69005628,0.00014999,2]
[422172283,1778646641000,-300.0,0.00014999,2]
[422172284,1778646641000,-666.0,0.00014999,2]
[422172285,1778646641000,-300.0,0.00014999,2]
[422172287,1778646641000,-394.11776945,0.00014999,2]
[422172286,1778646641000,-666.0,0.00014999,2]
[422172288,1778646641000,-205.88223055,0.00014999,2]
[422172291,1778646641000,-106789.07547527,0.00015,2]
[422172296,1778646641000,-200.0,0.00015,2]
[422172289,1778646641000,-12203902.91665468,0.00015,2]
[422172292,1778646641000,-427.6893788,0.00015,2]
[422172295,1778646641000,-14144.9583421,0.00015,2]
[422172297,1778646641000,-2729.1998069,0.00015,2]
[422172294,1778646641000,-161.0,0.00015,2]
[422172304,1778646641000,-151.0,0.00015,2]
[422172299,1778646641000,-375.42,0.00015,2]
[422172300,1778646641000,-151.0,0.00015,2]
[422172302,1778646641000,-241.4136707,0.00015,2]
[422172293,1778646641000,-176.03,0.00015,2]
[422172290,1778646641000,-2075.73057974,0.00015,2]
[422172280,1778646641000,-500.0,0.00014999,2]
[422172267,1778646641000,-539.11982086,0.00014999,2]
[422172275,1778646641000,-500.0,0.00014999,2]
[422172298,1778646641000,-8970.0508214,0.00015,2]
[422172252,1778646641000,-1317.498208,0.000149,2]
[422172254,1778646641000,-355.7566692,0.000149,2]
[422172255,1778646641000,-339.56672545,0.000149,2]
[422172256,1778646641000,-25000.0,0.000149,3]
[422172257,1778646641000,-1317.31209683,0.000149,2]
[422172258,1778646641000,-1542.29910834,0.000149,2]
[422172259,1778646641000,-722.41935894,0.000149,2]
[422172260,1778646641000,-178.31621023,0.000149,2]
[422172265,1778646641000,-500.0,0.00014999,2]
[422172264,1778646641000,-151.0,0.00014997,2]
[422172263,1778646641000,-243.67220426,0.0001499,2]
[422172269,1778646641000,-500.0,0.00014999,2]
[422172262,1778646641000,-243.67220426,0.0001499,2]
[422172261,1778646641000,-346.96,0.00014944,2]
[422172268,1778646641000,-155.469,0.00014999,2]
[422172271,1778646641000,-500.0,0.00014999,2]
[422172266,1778646641000,-500.0,0.00014999,2]
[422172270,1778646641000,-500.0,0.00014999,2]
[422172273,1778646641000,-500.0,0.00014999,2]
[422172272,1778646641000,-500.0,0.00014999,2]
[422172278,1778646641000,-500.0,0.00014999,2]
[422172281,1778646641000,-500.0,0.00014999,2]
[422172274,1778646641000,-500.0,0.00014999,2]
[422172303,1778646641000,-200.0,0.00015,2]
[422172253,1778646641000,-1432883.47500268,0.000149,2]
[422172306,1778646641000,-151.0,0.00015,2]
[422172332,1778646641000,-200.0,0.00015049,2]
[422172330,1778646641000,-151.0,0.00015,2]
[422172339,1778646641000,-200.0,0.0001515,2]
[422172336,1778646641000,-472.848313,0.00015068,2]
[422172338,1778646641000,-200.0,0.0001515,2]
[422172341,1778646641000,-346.96,0.00015291,2]
[422172335,1778646641000,-472.848313,0.00015068,2]
[422172337,1778646641000,-200.0,0.0001515,2]
[422172344,1778646641000,-200.0,0.00015301,2]
[422172343,1778646641000,-200.0,0.00015301,2]
[422172349,1778646641000,-200.0,0.00015455,2]
[422172348,1778646641000,-200.0,0.00015455,2]
[422172342,1778646641000,-1517.64,0.000153,2]
[422172346,1778646641000,-200.0,0.00015351,2]
[422172347,1778646641000,-200.0,0.00015455,2]
[422172350,1778646641000,-1236.76071067,0.000155,2]
[422172345,1778646641000,-200.0,0.00015301,2]
[422172352,1778646641000,-200.0,0.00015609,2]
[422172351,1778646641000,-200.0,0.00015505,2]
[422172354,1778646641000,-200.0,0.00015609,2]
[422172355,1778646641000,-2000.0,0.00015645,2]
[422172356,1778646641000,-2269.21898435,0.00015807,2]
[422172301,1778646641000,-151.0,0.00015,2]
[422172331,1778646641000,-214.91342137,0.00015032,2]
[422172334,1778646641000,-472.848313,0.00015068,2]
[422172353,1778646641000,-200.0,0.00015609,2]
[422172340,1778646641000,-200.0,0.00015199,2]
[422172316,1778646641000,-151.0,0.00015,2]
[422172333,1778646641000,-472.848313,0.00015068,2]
[422172307,1778646641000,-151.0,0.00015,2]
[422172309,1778646641000,-2000.0,0.00015,2]
[422172305,1778646641000,-5026.4397898,0.00015,2]
[422172313,1778646641000,-1170.488914,0.00015,2]
[422172312,1778646641000,-1170.488914,0.00015,2]
[422172310,1778646641000,-200.0,0.00015,2]
[422172315,1778646641000,-151.0,0.00015,2]
[422172311,1778646641000,-1170.488914,0.00015,2]
[422172314,1778646641000,-1170.488914,0.00015,2]
[422172318,1778646641000,-348.961651,0.00015,2]
[422172308,1778646641000,-66639.9193285,0.00015,2]
[422172326,1778646641000,-749.321439,0.00015,2]
[422172322,1778646641000,-151.0,0.00015,2]
[422172323,1778646641000,-151.0,0.00015,2]
[422172319,1778646641000,-348.961651,0.00015,2]
[422172321,1778646641000,-151.0,0.00015,2]
[422172325,1778646641000,-749.321439,0.00015,2]
[422172324,1778646641000,-749.321439,0.00015,2]
[422172320,1778646641000,-348.961651,0.00015,2]
[422172327,1778646641000,-749.321439,0.00015,2]
[422172329,1778646641000,-151.0,0.00015,2]
[422172317,1778646641000,-348.961651,0.00015,2]
[422172328,1778646641000,-151.0,0.00015,2]
[422172401,1778646642000,-500.0,0.00019178,2]
[422172397,1778646642000,-2000.0,0.00019122,2]
[422172398,1778646642000,-500.0,0.00019178,2]
[422172396,1778646642000,-363.77073856,0.0001901,7]
[422172394,1778646642000,-393.47665623,0.00019,2]
[422172395,1778646642000,-345.90912459,0.00019,2]
[422172393,1778646642000,-4190.0,0.00019,2]
[422172403,1778646642000,-500.0,0.00019178,2]
[422172387,1778646642000,-1044.25976013,0.00018,2]
[422172383,1778646642000,-1237.52753037,0.0001789,2]
[422172388,1778646642000,-350.0,0.00018,2]
[422172392,1778646642000,-182.98,0.0001882,2]
[422172400,1778646642000,-500.0,0.00019178,2]
[422172410,1778646642000,-955.12368831,0.000199,2]
[422172402,1778646642000,-500.0,0.00019178,2]
[422172405,1778646642000,-151.0,0.00019178,2]
[422172404,1778646642000,-151.0,0.00019178,2]
[422172414,1778646642000,-200.0,0.0002,2]
[422172415,1778646642000,-13080.79766381,0.0002,2]
[422172406,1778646642000,-151.0,0.00019178,2]
[422172407,1778646642000,-151.0,0.00019178,2]
[422172408,1778646642000,-823.0,0.00019412,2]
[422172413,1778646642000,-500.0,0.00019918,2]
[422172409,1778646642000,-156.94,0.00019646,2]
[422172411,1778646642000,-955.12368829,0.000199,2]
[422172386,1778646642000,-1205.78662741,0.00018,2]
[422172399,1778646642000,-500.0,0.00019178,2]
[422172381,1778646642000,-1865.36488657,0.00017678,2]
[422172359,1778646642000,-150.0,0.000159,2]
[422172380,1778646642000,-301.2218529,0.00017678,2]
[422172358,1778646642000,-188.58613926,0.000159,2]
[422172360,1778646642000,-8983.23305263,0.00015989,2]
[422172357,1778646642000,-150.0,0.000159,2]
[422172363,1778646642000,-2800.50485724,0.0001611,15]
[422172416,1778646642000,-3607.672545,0.0002,2]
[422172362,1778646642000,-300.0,0.00016,2]
[422172361,1778646642000,-227.0,0.00016,2]
[422172364,1778646642000,-9999.99,0.00016116,2]
[422172365,1778646642000,-420.0,0.000162,2]
[422172370,1778646642000,-1341.707239,0.00016438,2]
[422172367,1778646642000,-200.0,0.0001634,2]
[422172377,1778646642000,-2165.91072173,0.000165,2]
[422172371,1778646642000,-1341.707239,0.00016438,2]
[422172390,1778646642000,-6791.15,0.00018781,2]
[422172372,1778646642000,-1341.707239,0.00016438,2]
[422172376,1778646642000,-155.0,0.00016499,2]
[422172368,1778646642000,-367.77821944,0.00016438,2]
[422172369,1778646642000,-1341.707239,0.00016438,2]
[422172373,1778646642000,-151.0,0.00016438,2]
[422172375,1778646642000,-161.91,0.0001645,2]
[422172374,1778646642000,-151.0,0.00016438,2]
[422172389,1778646642000,-178.97,0.00018074,2]
[422172391,1778646642000,-375.42,0.000188,2]
[422172378,1778646642000,-2000.0,0.00017384,2]
[422172379,1778646642000,-288.0,0.00017644,2]
[422172382,1778646642000,-587.0,0.00017734,2]
[422172384,1778646642000,-468.27,0.00017973,2]
[422172385,1778646642000,-155.0,0.00017999,2]
[422172366,1778646642000,-10209.89761411,0.0001627,2]
[422172419,1778646642000,-150.0,0.0002,10]
[422172412,1778646642000,-955.12368829,0.000199,2]
[422172425,1778646642000,-1161.0,0.00021,2]
[422172457,1778646642000,-1353.0,0.00022431,2]